Cogmind - Beta 14 *** ADVENTURER MODE // 2024.09.26 @ 19:52:44 Player: Mein Result: Destroyed by G-34 Mercenary with Small Laser Performance ------------- Evolutions (1) 500 Regions Visited (2) 400 Robots Destroyed (7) 35 Value Destroyed (152) 152 Prototype IDs (0) 0 Alien Tech Used (0) 0 Bonus (0) 0 TOTAL SCORE: 1087 Bonus ------- None Cogmind --------- Core Integrity 0/400 Matter 283/300 Energy 100/100 System Corruption 0% Temperature Cool (6) Movement Core (350) Ox6 Location -9/Materials Parts ------- > --- POWER (2) -------- (None) > --- PROPULSION (2) --- (None) > --- UTILITY (2) ------ Large Storage Unit > --- WEAPON (3) ------- (None) > --- INVENTORY (15) --- (None) Peak State ------------ > --- POWER ------------ Light Ion Engine > --- PROPULSION ------- Aluminum Leg Aluminum Leg > --- UTILITY ---------- Improved Heat Sink Large Storage Unit > --- WEAPON ----------- Light Assault Rifle Light Assault Rifle > --- INVENTORY -------- Light Ion Engine Flight Unit Grenade Launcher [Rating: 9] Favorites ----------- Power Light Ion Engine Engine Light Ion Engine Propulsion Aluminum Leg Leg Aluminum Leg Utility Improved Heat Sink Device Improved Heat Sink Storage Large Storage Unit Weapon Light Assault Rifle Ballistic Gun Light Assault Rifle Launcher Grenade Launcher Build | -11 -10 -9 ------- Run | Yrd Mat Mat Slots Evolved 2 | . . 2 Power 1 | . . 1 Propulsion . | . . . Utility . | . . . Weapon 1 | . . 1 Parts Attached 11 | 5 6 . Power 2 | 1 1 . Engine 2 | 1 1 . Core . | . . . Reactor . | . . . Propulsion 2 | 2 . . Treads . | . . . Leg 2 | 2 . . Wheel . | . . . Hover . | . . . Flight . | . . . Utility 2 | . 2 . Device 1 | . 1 . Storage 1 | . 1 . Processor . | . . . Hackware . | . . . Protection . | . . . Artifact . | . . . Weapon 5 | 2 3 . Energy Gun . | . . . Energy Cannon . | . . . Ballistic Gun 4 | 2 2 . Ballistic Cannon . | . . . Launcher 1 | . 1 . Special Weapon . | . . . Impact Weapon . | . . . Slashing Weapon . | . . . Piercing Weapon . | . . . Special Melee Weapon . | . . . Unidentified Prototypes . | . . . Parts Lost 6 | . . 6 Power 1 | . . 1 Propulsion 2 | . . 2 Utility 1 | . . 1 Weapon 2 | . . 2 Highest Loss Streak 6 | . . 6 To Critical Strikes . | . . . Average Slot Usage (%) 73 | . 81 61 Engine 11 | . 14 7 Leg 23 | . 28 16 Device 7 | . 6 8 Storage 6 | . 3 11 Ballistic Gun 21 | . 24 17 Launcher 1 | . 3 . Peak Build Rating 9 | 5 9 9 Average Rating 6 | 3 6 7 On Entrance 4 | . 5 9 Naked Turns . | . . . Heaviest Build 26 | 5 26 26 Greatest Support 20 | 20 20 20 Greatest Overweight (x) 6 | . 1 6 Average Overweight (x) . | . . 1 Largest Inventory Capacity 15 | 5 15 15 Average Capacity 9 | 5 7 15 Most Carried 4 | 2 4 2 Average Carried 1 | . 2 . Final Capacity 15 | 5 15 15 Final Carried 2 | 1 2 . Class Distribution -------------------- 100% | Mutant Dominant Class ---------------- Mutant | -10/Materials Mutant | -9/Materials Resources | -11 -10 -9 ----------- Run | Yrd Mat Mat Matter Collected 360 | 262 98 . Remotely . | . . . Salvage Created 183 | 57 126 . Parts 16 | 6 10 . Haulers Intercepted . | . . . Recyclers Shooed 3 | . 3 . Parts Field Recycled . | . . . Retrieved Matter . | . . . Parts Self-Destructed . | . . . Prevented . | . . . Kills | -11 -10 -9 ------- Run | Yrd Mat Mat Combat Hostiles Destroyed 5 | 1 4 . Guns 5 | 1 4 . Classes Destroyed 4 | 2 2 . Worker 1 | 1 . . Watcher 1 | . 1 . Swarmer 2 | . 2 . Grunt 3 | 1 2 . Best Kill Streak 3 | 1 3 . Combat Bots Only 2 | 1 2 . Max Kills in Single Turn 1 | 1 1 . Gunslinging . | . . . Exploded . | . . . Melee . | . . . Uniques/NPCs Destroyed . | . . . Combat | -11 -10 -9 -------- Run | Yrd Mat Mat Hostile Shots Fired 124 | 5 25 94 Missed 34 | 2 8 24 Damage Taken 970 | 24 140 806 Core 446 | . 39 407 Absorbed by Shields . | . . . Ignored by Resistances 287 | 8 43 236 Core Remaining (%) 92 | 100 84 . Volleys Fired 46 | 7 25 14 Largest 2 | 2 2 2 Hottest 50 | 40 50 40 Shots Fired 79 | 12 40 27 Gun 77 | 12 38 27 Cannon . | . . . Launcher 2 | . 2 . Special . | . . . Kinetic 77 | 12 38 27 Thermal . | . . . Explosive 2 | . 2 . Electromagnetic . | . . . Robot Hit Streak 11 | 7 10 11 Robot Miss Streak 4 | 1 4 2 Penetration Max . | . . . Secondary Targets . | . . . Shots Hit Robots 55 | 10 25 20 Core Hits 22 | 4 13 5 Critical Kills . | . . . Critical Parts Destroyed . | . . . Critical Strikes . | . . . Melee Attacks . | . . . Impact . | . . . Slashing . | . . . Piercing . | . . . Sneak Attacks . | . . . Combat Hostiles . | . . . Follow-up Attacks . | . . . Damage Inflicted 504 | 74 262 168 Guns 481 | 74 239 168 Cannons . | . . . Explosions 23 | . 23 . Melee . | . . . Ramming . | . . . Kinetic 481 | 74 239 168 Thermal . | . . . Explosive 23 | . 23 . Electromagnetic . | . . . Impact . | . . . Slashing . | . . . Piercing . | . . . Highest Corruption . | . . . Average Corruption . | . . . Corruption Purged . | . . . Corruption Blocked . | . . . Overload Shots . | . . . Overflow Damage . | . . . Projectiles . | . . . Explosions . | . . . Melee . | . . . Knockbacks . | . . . Impact . | . . . Kinetic . | . . . Secondary . | . . . Self-Inflicted Damage . | . . . Shots . | . . . Rammed . | . . . Targets Rammed . | . . . Kicked . | . . . Crushed . | . . . Highest Temperature 27 | 6 27 1 Average Temperature 11 | 6 13 1 Received Heat Transfer 432 | 18 72 342 Siege Activations . | . . . Robots Corrupted . | . . . Combat Hostiles . | . . . Parts Fried . | . . . Impact Corruptions . | . . . Robots Melted . | . . . Combat Hostiles . | . . . Parts Melted . | . . . Heat Transferred . | . . . Parts Sabotaged . | . . . Parts Stolen . | . . . Parts Stripped . | . . . Power Chain Reactions . | . . . Alert | -11 -10 -9 ------- Run | Yrd Mat Mat Peak Influence 152 | 25 152 74 Initial 54 | . 13 54 Average 62 | 6 98 52 Maximum Alert Level . | . . . Low Security (%) 100 | 100 100 100 Level 1 . | . . . Level 2 . | . . . Level 3 . | . . . Level 4 . | . . . Level 5 . | . . . High Security . | . . . Max Security . | . . . Squads Dispatched . | . . . Investigation . | . . . Extermination . | . . . Reinforcement . | . . . Assault . | . . . Garrison . | . . . Intercept . | . . . Searches Triggered . | . . . Construction Impeded . | . . . Haulers Reinforced . | . . . Active Scanning Responses . | . . . Cargo Convoy Interrupts . | . . . Stealth | -11 -10 -9 --------- Run | Yrd Mat Mat Distress Signals 2 | . 2 . Communications Jammed . | . . . Distress Signals . | . . . Times Spotted 14 | 1 8 5 Peak Tracking Total 5 | 1 4 5 Tactical Retreats . | . . . Traps | -11 -10 -9 ------- Run | Yrd Mat Mat Traps Triggered . | . . . Indirectly . | . . . Trap Hack Attempts . | . . . Triggered . | . . . Disarmed . | . . . Reprogrammed . | . . . Reused . | . . . Traps Extracted . | . . . Installed . | . . . Triggered . | . . . Machines | -11 -10 -9 ---------- Run | Yrd Mat Mat Machines Disabled . | . . . Max in Single Turn . | . . . Machines Repaired . | . . . Machines Dismantled . | . . . Machines Sabotaged . | . . . Overloaded Fab Kills . | . . . Hacking | -11 -10 -9 --------- Run | Yrd Mat Mat Machines Accessed 3 | . 1 2 Terminals 1 | . . 1 Fabricators . | . . . Repair Stations . | . . . Recycling Units 2 | . 1 1 Scanalyzers . | . . . Garrison Access . | . . . Total Hacks 15 | . 3 12 Successful 9 | . 1 8 Failed 6 | . 2 4 Catastrophic 1 | . . 1 Database Lockouts . | . . . Manual 1 | . . 1 Terminals 6 | . . 6 Fabricators . | . . . Repair Stations . | . . . Recycling Units 9 | . 3 6 Scanalyzers . | . . . Garrison Access . | . . . Terminal Hacks 3 | . . 3 Recycling Unit Index 1 | . . 1 Alert Level 1 | . . 1 Hauler Manifests 1 | . . 1 Fabricator Hacks . | . . . Repair Station Hacks . | . . . Recycling Unit Hacks 6 | . 1 5 Recycle Component 3 | . 1 2 Process 1 | . . 1 Report Inventory 1 | . . 1 Retrieve Components 1 | . . 1 Scanalyzer . | . . . Garrison Access Hacks . | . . . Unauthorized Hacks . | . . . Terminals . | . . . Fabricators . | . . . Repair Stations . | . . . Recycling Units . | . . . Scanalyzers . | . . . Garrison Access . | . . . Data Cores Recovered . | . . . Used . | . . . Hacking Detections 3 | . 1 2 Full Trace Events 3 | . 1 2 Feedback Events . | . . . Feedback Blocked . | . . . Robot Schematics Acquired . | . . . Robots Built . | . . . Authchips . | . . . Time . | . . . Total Robot Build Rating . | . . . Part Schematics Acquired . | . . . Parts Built . | . . . Authchips . | . . . Time . | . . . Total Part Build Rating . | . . . Parts Repaired . | . . . Time . | . . . Parts Recycled 3 | . 1 2 Recycled Matter 5 | . . 5 Retrieved Matter . | . . . Retrieved Components . | . . . Parts Scanalyzed . | . . . Part Schematics Acquired . | . . . Parts Damaged . | . . . Bothacking | -11 -10 -9 ------------ Run | Yrd Mat Mat Used RIF Installer . | . . . Robots Hacked . | . . . Non-combat . | . . . Combat . | . . . Robot Hacks Applied . | . . . Relay Couplers Released . | . . . Fabnet Peak Effective % . | . . . Robots Rewired . | . . . Allies Hacked . | . . . Hacks Repelled . | . . . Allies | -11 -10 -9 -------- Run | Yrd Mat Mat Total Allies . | . . . Largest Group . | . . . Highest-Rated Group . | . . . Highest-Rated Ally . | . . . Total Orders . | . . . Ally Attacks . | . . . Total Damage . | . . . Kills . | . . . Allies Corrupted . | . . . Allies Melted . | . . . Intel | -11 -10 -9 ------- Run | Yrd Mat Mat Robot Analysis Total . | . . . Derelict Logs Recovered . | . . . Drone Launches . | . . . Drone Recoveries . | . . . Exploration | -11 -10 -9 ------------- Run | Yrd Mat Mat Turns Passed 482 | 108 217 157 Spaces Moved 238 | 76 105 57 Core 25 | 17 . 8 Treads . | . . . Legs 213 | 59 105 49 Wheels . | . . . Hover . | . . . Flight . | . . . Fastest Speed 50 | 50 120 190 Average Speed 146 | 104 140 212 Slowest Speed 350 | 120 190 350 Overloaded Moves . | . . . Propulsion Burnouts . | . . . Robots Hopped . | . . . Cave-ins Triggered . | . . . Exploration Rate (%) 10 | 5 18 9 Regions Visited 2 Branch Regions . Pre-discovered Areas . | . . . Known Exits Taken . | . . . Unknown Exits Taken 2 | 1 1 . Scrap Searched . | . . . Spaces Dug . | . . . Terrain Destroyed 12 | . 12 . Melee . | . . . Projectile . | . . . AOE 12 | . 12 . Terrain Rammed . | . . . Walls Destroyed . | . . . Machines Disabled . | . . . Actions | -11 -10 -9 --------- Run | Yrd Mat Mat Total 307 | 95 141 71 Wait . | . . . Move 236 | 75 104 57 Hop . | . . . Pick Up 12 | 7 5 . Fast Attach . | . . . Attach 7 | 5 2 . Detach . | . . . Swap 4 | . 4 . Drop 2 | 1 1 . Fire 46 | 7 25 14 Melee . | . . . Ram . | . . . Kick . | . . . Crush . | . . . Escape Stasis . | . . . Rewire . | . . . Trap . | . . . Miscellaneous . | . . . Route ------- -11/Scrapyard -10/Materials -9/Materials History --------- Turn | Location | Event 2 | -11/Scrapyard | Met Revision 17 74 | -11/Scrapyard | Discovered new exit (range 8) 109 | -11/Scrapyard | Entered Materials 298 | -10/Materials | Discovered new exit (range 15) 308 | -10/Materials | Build established: Mutant 326 | -10/Materials | Entered another Materials area 326 | -9/Materials | Evolved 2 slots: Power x1, Weapon x1 456 | -9/Materials | Core integrity fell below 50% 472 | -9/Materials | Core integrity fell below 20% 483 | -9/Materials | Destroyed by G-34 Mercenary with Small Laser Last Messages --------------- R-06 Scavenger collects Core Shielding. K-01 Serf cleans the Processing Tank. M-13 Machinist repairs G-34 Mercenary. U-05 Engineer completes Processing Tank. K-01 Serf collects debris. U-05 Engineer works on Processing Tank. M-13 Machinist repairs G-34 Mercenary. R-06 Scavenger collects Imp. Aluminum Leg. K-01 Serf collects debris. U-05 Engineer works on Processing Tank. Processing Tank comes online. U-05 Engineer works on Processing Tank. K-01 Serf collects debris. U-05 Engineer works on Processing Tank. K-01 Serf collects debris. U-05 Engineer works on Processing Tank. K-01 Serf collects debris. U-05 Engineer works on Processing Tank. K-01 Serf collects debris. [Achievement: First Step to Greatness] Map ----- +----------------------------------------------------+ | ?????????????????????????????????????????????????? | | ?????????????????????????????????????????????????? | | ?????????????????????????????????????????????????? | | ?????????????????????????????????????????????????? | | ?????????????????????????????????????????????????? | | ?????????????????????????????????????????????????? | | ?????????????????????????????????????????????????? | | ?????????????????????????????????????????????????? | | ?????????????????????????????????????????????????? | | ?????????????????????????????????????????????????? | | ?????????????????????????????????????????????????? | | ?????????????????????????????????????????????????? | | ?????????????????????????????????????????????????? | | ?????????????????????????+???????????????????????? | | ????????????? #????????? ???????????????????????? | | ????????????? ?#??????## ???????????????????????? | | ????????????? ?????? ???????????????????????? | | ????????????? ??????? +??????????????????????? | | ????????????? ????????# #??????????????????????? | | ????????????? #????????# #??????????????????????? | | ???###+###### #?????#### #??????????????????????? | | ???# #?????+ #??????????????????????? | | ???# #??????# #??????????????????????? | | ???# " #??????# #######????????????????? | | ???# T #??????# k #????????????????? | | ???# " #??????# @ k #????????????????? | | ???# #??????# """ #????????????????? | | ???# """ #??????# """ #????????????????? | | ???# """ #??????# """ #????????????????? | | ???# """ #??????# Y g #????????????????? | | ???# #??##### #### #?????????? | | ???# #### g #?????????? | | ???# % #?????????? | | ???######## %m #?????????? | | ??????????# """ "uu """ """ """ #?????????? | | ??????????# "Y" <<< """ """t """ ? ??????????? | | ??????????# < """ """ """?????????????? | | ??????##### u """ """ ""??????????????? | | ??????# < "" """ ?""??????????????? | | ??????# ?????????????????? | | ??????# ?????????????????? | | ??????####+##### ####### ####?????????????????? | | ???????????????# #?????? #????????????????????? | | ???????????????# #?????? #????????????????????? | | ???????????????# #?????? +????????????????????? | | ???????????????# #?????? #????????????????????? | | ???????????????# #?????? ? #????????????????????? | | ???????????????? #??????????????????????????????? | | ??????????????????#??????????????????????????????? | | ?????????????????????????????????????????????????? | +----------------------------------------------------+ Best States ------------- Heat Dissipation 42 Energy Generation 10 Energy Capacity 125 Matter Stores 300 Matter Capacity 300 Sight Range 16 Terrain Scan Density 10 Resistance: KI 20 Resistance: TH 20 Resistance: EX 20 Resistance: EM 20 Resistance: I 20 Resistance: S 20 Resistance: P 20 Evasion (%) 55 Offensive Hacking 10 Item Schematics ----------------- None Robot Schematics ------------------ None Fabricated ------------ Nothing Alien Tech Used ----------------- None Achievements -------------- Crack Shot First Step to Greatness Shopping List Challenges ------------ None Game ------ Seed ReactiveRecoilSheargun Manual? 0 Play Time 00:15:52 Cumulative 0.2 hours Start 2024.09.26 @ 19:38:08 End 2024.09.26 @ 19:52:44 Sessions 1 Manual Loads 0 Difficulty Adventurer Special Mode None Game No. 1 Rogue 0 Adventurer 1 Explorer 0 Win Type - Total 0 Types 0/0/0/0/0/0/0/0/0 Lore% 0 Gallery% 0 Achievement% 1 Wizard Run 0 Options --------- Layout 1 ASCII 0 Keyboard 0 Movement Mouse Keybinds 0 Fullscreen 1 Font 24/Smallcaps Map View 50x35 Zoom Use 1% Tactical HUD 0 Map Filters NONE Filters NONE Steam 1 RUN: b3801f41-e589-4cf7-8272-ef239ca142a6